{"text_format":"1","workbook":"xlsx","n_sheets":6,"sheets":["Inicio","Instrucciones","Autodiagnóstico","Gráficas","Plan de Implementación","Tipología entidad"],"not_rendered":{"charts":7,"images":6,"macros":1,"external_links":1,"defined_names":7,"comments":0,"pivot_tables":0},"unopened":[],"bounds":{"document_bytes":16777216,"sheet_cells":100000,"rows_first":2000,"rows_last":500,"rows_between":2000,"halvings":0,"cell_chars":16384,"cell_head_chars":4096},"cells_cut":0,"cells_raw":0,"read":"whole","date_system":"1900"}

{"sheet":"Inicio","index":0,"n_rows":5,"n_cols":3,"rows_kept":5,"cut":false,"hidden":false,"merged":[[2,2,2,16],[7,3,7,15],[10,3,10,15],[13,3,13,15],[4,2,4,16]]}
[]
[]
[null,null,"AUTODIAGNÓSTICO DE GESTIÓN "]
[]
[null,null,"POLÍTICA DEFENSA JURÍDICA - NACIÓN"]

{"sheet":"Instrucciones","index":1,"n_rows":105,"n_cols":12,"rows_kept":105,"cut":false,"hidden":false,"merged":[[116,10,116,11],[2,2,2,18],[4,2,4,18],[11,2,12,18],[78,2,79,18],[81,2,82,18],[54,2,56,18],[63,2,64,18],[51,2,52,18],[71,2,71,18],[73,2,74,18],[104,2,105,18],[6,2,9,18]]}
[null,null,null,null,null,null,null,null,null,null,null,""]
[]
[null,null,"AUTODIAGNÓSTICO DE GESTIÓN -  POLÍTICA DEFENSA JURÍDICA"]
[]
[null,null,"INSTRUCCIONES DE DILIGENCIAMIENTO"]
[]
[null,null,"Este archivo hace parte de un conjunto de herramientas de Autodiagnóstico que le permitirán a cada entidad desarrollar un ejercicio de valoración del estado de cada una de las dimensiones en las cuales se estructura el Modelo Integrado de Gestión y Planeación; con  el propósito de que la entidad logre contar con una línea base respecto a los aspectos que debe fortalecer, los cuales deben ser incluidos en su planeación institucional.   Este autodiagnóstico puede ser utilizado en el momento en que lo considere pertinente, sin implicar reporte alguno a Función Pública, a otras instancias del Gobierno o a organismos de Control."]
[]
[]
[]
[]
[null,null,"A continuación, se explica en detalle como se debe diligenciar."]
[]
[]
[null,null,"Autodiagnóstico:"]
[]
[null,null,"Está compuesto por las siguientes columnas:"]
[]
[null,null,"-","Componentes: son los grandes temas que enmarcan la política objeto de medición. "]
[null,null,null,"Para la Política de Defensa Jurídica los componentes son:"]
[]
[null,null,null,null,"1. Actuaciones Prejudiciales."]
[null,null,null,null,"2. Defensa Judicial."]
[null,null,null,null,"3. Cumplimiento de sentencias y conciliaciones."]
[null,null,null,null,"4. Acción de repetición y recuperación de bienes públicos."]
[null,null,null,null,"5. Prevención del daño antijurídico."]
[]
[null,null,"-","Calificación: puntaje automático obtenido como resultado de la autocalificación que realice en el avance de la política. "]
[null,null,"-","Categoría: corresponde a las acciones que la entidad debe contemplar para el avance de la respectiva política. "]
[null,null,null,"Bajo este escenario las categorías a analizar son:"]
[]
[null,null,null,null,"1. Planeación "]
[null,null,null,null,"2. Ejecución"]
[null,null,null,null,"3. Seguimiento y evaluación"]
[]
[null,null,"-","Actividades de Gestión: son las actividades puntuales que la entidad debe estar implementando para considerar el avance en la implementación de la política. "]
[null,null,"-","Puntaje: es la casilla donde la entidad se autocalificará de acuerdo con las actividades descritas, en una escala de 0 a 100."]
[null,null,"-","Observaciones: en este espacio, podrá hacer las anotaciones o comentarios que considere pertinentes."]
[]
[null,null,"Las ÚNICAS celdas que debe diligenciar son la del nombre de la Entidad y la columna de Puntaje (resaltada en azul). La de observaciones de manera opcional si lo considera necesario."]
[]
[null,null,"Para la calificación, se estableció una escala de 6 niveles:"]
[]
[null,null,"Puntaje","Nivel","Color"]
[null,null,"0","N/A"]
[null,null,"1 - 20",1]
[null,null,"21 - 40",2]
[null,null,"41 - 60",3]
[null,null,"61- 80",4]
[null,null,"81- 100",5]
[]
[null,null,"Cuando se ingresa un puntaje, esa columna automáticamente mostrará el color que corresponde según la escala anterior.  Así mismo, la calificación de las categorías, de los componentes y la calificación total se generan automáticamente. Recuerde sólo ingresar puntajes de 0 a 100."]
[]
[]
[null,null,"Si usted considera que alguna de las actividades no aplica para su Entidad por sus características particulares, no diligencie puntaje o en su defecto ingrese 0, y en la columna Observaciones escriba \"No aplica\". Por ejemplo, si en su entidad no se efectúan negociaciones colectivas por no haber sindicatos, en el ítem \"Negociación Colectiva\" usted no deberá ingresar ningún puntaje y deberá escribir en la columna Observaciones \"No aplica\"."]
[]
[]
[]
[null,null,"Recuerde que en la escala mencionada 100 corresponde al cumplimiento a total cabilidad de la actividad mencionada, 1 corresponde al incumplimiento total de la actividad descrita"]
[null,null," e ingrese 0 cuando la actividad descrita no aplica para su entidad. "]
[]
[null,null,"Los resultados finales solo reflejarán el resultado de los puntajes diligenciados. Si alguna casilla se deja en blanco o en 0, no contará para los resultados."]
[]
[null,null,"ES MUY IMPORTANTE que los puntajes ingresados sean lo más objetivos posible, y que exista un soporte para cada uno de ellos. El propósito principal es identificar oportunidades de mejora, para lo cual es fundamental ser objetivos en los puntajes ingresados."]
[]
[]
[null,null,"Cuando finalice de calificar las actividades de gestión, podrá ver de manera gráfica los principales resultados, haciendo clic en el botón GRÁFICAS, o regresar al menú principal. "]
[]
[]
[null,null,"Gráficas:"]
[]
[null,null,"En esta hoja se podrán visualizar de una manera más clara y sencilla los resultados obtenidos.  Estas se generarán automáticamente una vez sea diligenciado el autodiagnóstico."]
[]
[null,null,"En la primera gráfica, se muestra el puntaje total obtenido por la entidad, comparado con cada uno de los niveles de calificación. De esta manera podrá visualizar en que nivel se encuentra actualmente y cuantos le faltan para alcanzar el máximo puntaje. "]
[]
[]
[null,null,"En la segunda gráfica se presentan las calificaciones obtenidas por cada uno de los componentes que integran la política.  Igualmente se comparan con los  niveles establecidos."]
[]
[null,null,"Y por último, se muestra la calificación por categorías. "]
[]
[]
[null,null,"Estos resultados le permitirán identificar cuales son las categorías y componentes que presentan un mayor rezago, o cuya implementación está dilatada, con el fin de que pueda determinar prioridades en el momento de realizar el plan de implementación. "]
[]
[]
[]
[null,null,"Plan de Acción:"]
[]
[null,null,"Esta hoja contiene un cuadro que le permitirá establecer una planeación y una ruta de acción, con base en las actividades de gestión que fueron evaluadas. "]
[]
[null,null,"Para ello, el cuadro está dividido en 2 secciones:"]
[]
[null,null,"1. Documentación y guías de referencia (color gris): contiene toda la información y documentos de consulta que pueden ser útiles y deben ser de conocimiento:"]
[]
[null,null,"-","Guías normas y técnicas"]
[null,null,"-","Buenas prácticas e innovación"]
[null,null,"-","Normatividad"]
[null,null,"-","Otros"]
[]
[null,null,"2. Planeación y Ruta de acción (color naranja):  la idea es generar un plan de acción con base en el diagnóstico realizado. Los elementos mínimos que se proponen para ello, son:"]
[]
[null,null,"-","Diseñar alternativas de mejora"]
[null,null,"-","Definir las mejoras a implementar, incluyendo el plazo y los responsables de la implementación"]
[null,null,"-","Evaluar la eficacia de las acciones implementadas y volver a diligenciar el autodiagnóstico"]
[]
[null,null,"Aunque el cuadro puede ser diligenciado en su totalidad, se recomienda iniciar y darle prioridad a aquellas actividades que obtuvieron menores puntajes y que se encuentran en color rojo, naranja y amarillo. "]

{"sheet":"Autodiagnóstico","index":2,"n_rows":55,"n_cols":9,"rows_kept":55,"cut":false,"hidden":false,"merged":[[41,5,43,5],[47,2,54,2],[47,4,48,4],[47,3,54,3],[49,4,51,4],[52,4,54,4],[44,5,46,5],[47,5,48,5],[49,5,51,5],[52,5,54,5],[34,2,39,2],[44,4,46,4],[40,2,46,2],[34,4,35,4],[36,4,37,4],[41,4,43,4],[34,3,39,3],[40,3,46,3],[38,4,39,4],[15,5,18,5],[10,3,22,3],[23,4,26,4],[38,5,39,5],[34,5,35,5],[36,5,37,5],[27,5,28,5],[23,2,33,2],[23,3,33,3],[23,5,26,5],[29,5,33,5],[19,5,22,5],[19,4,22,4],[27,4,28,4],[29,4,33,4],[2,2,2,8],[10,4,14,4],[10,5,14,5],[7,7,8,7],[7,8,8,8],[4,2,4,5],[5,2,5,5],[4,6,4,8],[5,6,5,8],[7,2,8,2],[7,3,8,3],[7,4,8,4],[7,5,8,5],[7,6,8,6],[10,2,22,2],[15,4,18,4]]}
[null,null,null,null,null,null,""]
[]
[null,null,"AUTODIAGNÓSTICO DE GESTIÓN POLÍTICA DEFENSA JURÍDICA"]
[]
[null,null,"ENTIDAD",null,null,null,"CALIFICACIÓN TOTAL"]
[null,null,null,null,null,null,{"$f":"IF(SUM(H11:H55)=0,\"\",AVERAGEIF((H11:H55),\"<>0\"))","v":100}]
[]
[null,null,"COMPONENTES","CALIFICACIÓN ","CATEGORÍA","CALIFICACIÓN ","ACTIVIDADES DE GESTIÓN","PUNTAJE \n(0 - 100)","OBSERVACIONES"]
[]
[]
[null,null,"Actuaciones Prejudiciales",{"$f":"IF(SUM(H11:H23)=0,\"\",AVERAGEIF((H11:H23),\"<>0\"))","v":100},"Planeación",{"$f":"IF(SUM(H11:H15)=0,\"\",AVERAGEIF(H11:H15,\"<>0\"))","v":100},"¿La entidad ha integrado un Comité de Conciliación conformado por funcionarios de nivel directivo designados para el efecto, de acuerdo con lo previsto en la Ley 23 de 1991, modificada por la Ley 446 de 1998?",100]
[null,null,null,null,null,null,"¿El Comité de Conciliación seleccionó un secretario técnico abogado y está vinculado a la planta de personal?",100]
[null,null,null,null,null,null,"¿El Comité de Conciliación elaboró su propio reglamento y está  aprobado mediante resolución, circular o memorando?",100]
[null,null,null,null,null,null,"¿El Comité de Conciliación elabora documentos con los  perfiles de abogados externos,  y tiene en cuenta los criterios de  litigiosidad, complejidad de los casos y  el impacto de los procesos. Adicionalmente, remite los  perfiles de abogados externos a la oficina jurídica,  a la dependencia encargada de la contratación y al representante legal?",100]
[null,null,null,null,null,null,"¿La entidad hace y utiliza fichas técnicas o algún otro documento técnico para el estudio de los casos. (Conciliaciones extrajudiciales, conciliaciones judiciales, pactos de cumplimiento y acciones de repetición o llamamiento en garantía)?",100]
[null,null,null,null,"Ejecución",{"$f":"IF(SUM(H16:H19)=0,\"\",AVERAGEIF(H16:H19,\"<>0\"))","v":100},"¿El Comité de Conciliación decide las solicitudes de conciliación en un plazo máximo de quince (15) días, contados a partir del momento en que reciben la solicitud de conciliación?",100]
[null,null,null,null,null,null,"¿Los  apoderados de los casos tienen los documentos necesarios que les permitan elaborar las fichas de estudio para el estudio de la acción de repetición. Los documentos básicos son: copia del fallo, y pago de la condena, de la conciliación o de cualquier otro crédito derivado de la responsabilidad patrimonial de la entidad?",100]
[null,null,null,null,null,null,"¿El secretario técnico elabora las actas de cada sesión del comité debidamente, suscrita por el presidente y el secretario que haya asistido, dentro de los cinco (5) días siguientes a la correspondiente sesión?",100]
[null,null,null,null,null,null,"¿El Comité de Conciliación tiene un estudio de casos reiterados y  lo actualiza semestralmente?",100]
[null,null,null,null,"Seguimiento y evaluación",{"$f":"IF(SUM(H20:H23)=0,\"\",AVERAGEIF(H20:H23,\"<>0\"))","v":100},"¿La entidad realiza los estudios y evaluación de sus  procesos  anualmente?",100,"LA EVALUACIÓN DE LOS PROCESOSS E REALIZA DE MANERA PERMANENTE POR PARTE DE LOS APODERADOS, PARA TOMAR DECISIONES FRENTE A LOS CASOSCRITICOS."]
[null,null,null,null,null,null,"¿El Comité de Conciliación efectúa un seguimiento permanente a la gestión de los apoderados externos sobre los procesos que se les hayan asignado?",100,"LA ENTIDAD NO CUENTA CON APODERADOS EXTERNOS."]
[null,null,null,null,null,null,"¿El Comité de Conciliación ha formulado indicadores y conoce el resultado de la medición, estos de acuerdo con la periodicidad definida en el plan anual del Comité de Conciliación?",100]
[null,null,null,null,null,null,"¿La entidad registra las solicitudes de conciliación, o de otros Métodos Alternativos de Solución de Conflictos, y sus actuaciones y decisiones en un sistema de Información y, adicionalmente, cuenta con copia física y/o magnética de los documentos soporte?",100]
[null,null,"Defensa Judicial",{"$f":"IF(SUM(H24:H34)=0,\"\",AVERAGEIF((H24:H34),\"<>0\"))","v":100},"Planeación",{"$f":"IF(SUM(H24:H27)=0,\"\",AVERAGEIF(H24:H27,\"<>0\"))","v":100},"¿El área de defensa judicial cuenta con la tabla de retención documental y/o tablas de valoración documental para la gestión de archivos?",100,"EL AREA APLICA LAS TABLAS PREVIAMENTE DOCUMENTADAS Y APROBDAS PARA EL INPEC."]
[null,null,null,null,null,null,"¿El Comité de Conciliación diseñó y aprobó un documento con las políticas de defensa judicial de la entidad?",100]
[null,null,null,null,null,null,"¿La entidad capacita y mantiene actualizados a los abogados que defienden sus intereses litigiosos?",100]
[null,null,null,null,null,null,"¿En la entidad existen protocolos o procedimientos internos de manejo de archivos con el fin de facilitar a los apoderados la consecución de los antecedentes administrativos, para poder allegarlos en tiempo a los procesos judiciales?",100]
[null,null,null,null,"Ejecución",{"$f":"IF(SUM(H28:H29)=0,\"\",AVERAGEIF(H28:H29,\"<>0\"))","v":100},"¿El Comité de Conciliación cuenta con estrategias de defensa focalizadas en la reiteración,  la complejidad de los casos y el impacto del caso en términos de pretensiones, posibilidad de éxito, visibilidad ante los medios de comunicación, entre otros?",100]
[null,null,null,null,null,null,"¿La entidad tiene en consideración los lineamientos de fortalecimiento de la defensa expedidos por la ANDJE,  aplica las líneas jurisprudenciales que ha construido la  ANDJE y las que ellos mismos realizan, en el fortalecimiento de la defensa?",100]
[null,null,null,null,"Seguimiento y evaluación",{"$f":"IF(SUM(H30:H34)=0,\"\",AVERAGEIF(H30:H34,\"<>0\"))","v":100},"¿La entidad cuenta con un sistema de información o base de datos actualizada que contenga los procesos en los que participa?",100]
[null,null,null,null,null,null,"¿En la entidad reposa en copia física y/o magnética, todo lo respectivo al trámite de los procesos judiciales?",100]
[null,null,null,null,null,null,"¿El área mide y evalúa los resultados periódicamente de sus indicadores que miden la eficiencia, eficacia y efectividad de las políticas realizadas en materia de defensa jurídica?",100,"SE PRESENTA LA MEDICIÓN CONFORME A LOS LINEAMIENTOS Y PLAN DEFINIDOS POR LA ANDJE."]
[null,null,null,null,null,null,"¿La entidad estudia y evalúa los procesos que cursen o hayan cursado en contra de la entidad, para determinar las causas generadoras de los conflictos; el índice de condenas; los tipos de daño por los cuales resulta demandado o condenado; y las deficiencias de las actuaciones procesales por parte de los apoderados, con el objeto de proponer correctivos?",100,"CON BASE EN LOS CONSOLIDADOS DE FALLOS JUDICIALES FAVORABLES Y SE CUENTA CON  PERSONAL PROFESIONAL IDONEO PARA EL EJERCICIO DE LA DEFENSA"]
[null,null,null,null,null,null,"¿La entidad mide y evalúa la tasa de éxito procesal?",100]
[null,null,"Cumplimiento de sentencias y conciliaciones",{"$f":"IF(SUM(H35:H40)=0,\"\",AVERAGEIF((H35:H40),\"<>0\"))","v":100},"Planeación",{"$f":"IF(SUM(H35:H36)=0,\"\",AVERAGEIF(H35:H36,\"<>0\"))","v":100},"¿La entidad cuenta con una metodología y/o planeación para elaborar la provisión contable de las conciliaciones y procesos judiciales, de acuerdo con la normatividad de la Contaduría General de la Nación?",100]
[null,null,null,null,null,null,"¿La entidad obedece los parámetros fijados en los decretos  2469 de 2015 y 1342 de 2016 que reglamentan los pagos desde el Decreto Único del Sector de Hacienda y Crédito Público?",100]
[null,null,null,null,"Ejecución",{"$f":"IF(SUM(H37:H38)=0,\"\",AVERAGEIF(H37:H38,\"<>0\"))","v":100},"¿La entidad cumple oportunamente el pago de las sentencias y conciliaciones durante los 10 meses siguientes a la ejecutoría?",100,"POR EL REZADO PRESUPUESTALY LA ASIGNACIÓN ANUAL SE REALIZAN LOS PAGOS CONFORME LA LEY DE TURNOS."]
[null,null,null,null,null,null,"¿La entidad identifica y analiza los pagos realizados por concepto de capital e intereses moratorios de sentencias y conciliaciones?",100,"SIEMPRE Y CUANDO NO HAYA CESACIÓN DE INTERESES POR EL NO CUMPLIMIENDO DE REQUISITOS POR PARTE DE LOS BENEFICIARIOS DE LAS SENTENCIAS."]
[null,null,null,null,"Seguimiento y evaluación",{"$f":"IF(SUM(H39:H40)=0,\"\",AVERAGEIF(H39:H40,\"<>0\"))","v":100},"¿La entidad cuenta con un sistema de información o base de datos actualizada que contenga un inventario con los trámites de cumplimiento de créditos judiciales?",100]
[null,null,null,null,null,null,"¿Realiza seguimiento y evalúa el estado contable de los créditos Judiciales?",100]
[null,null,"Acción de repetición y recuperación de bienes públicos",{"$f":"IF(SUM(H41:H47)=0,\"\",AVERAGEIF((H41:H47),\"<>0\"))","v":100},"Planeación",{"$f":"IF(SUM(H41:H41)=0,\"\",AVERAGE(H41))","v":100},"¿El Comité de Conciliación evalúa los procesos que hayan sido fallados en contra de la entidad basado en estudios pertinentes, con el fin de determinar la procedencia de la acción de repetición?",100]
[null,null,null,null,"Ejecución",{"$f":"IF(SUM(H42:H44)=0,\"\",AVERAGEIF(H42:H44,\"<>0\"))","v":100},"¿El Comité de Conciliación adopta la decisión motivada de iniciar o no el proceso de repetición en un término no superior a cuatro (4) meses, y se presenta la correspondiente demanda, cuando la misma resulte procedente, dentro de los dos (2) meses siguientes a la decisión. Lo anterior es verificado por la oficina de control interno?",100]
[null,null,null,null,null,null,"¿El Comité de Conciliación decide sobre la formulación del llamamiento en garantía con fines de repetición para  los casos presentados?",100,"SE APLICA EL LLAMADO EN GARANTIA EN LOS CASOS QUE EL COMITÉ LOS ORDENE APLICANDO LA LEY 2220 DEL 2022."]
[null,null,null,null,null,null,"¿Los  apoderados de los casos tienen los documentos necesarios que les permitan elaborar las fichas de estudio para la acción de repetición. Los documentos básicos son: copia del fallo, y pago de la condena, de la conciliación o de cualquier otro crédito derivado de la responsabilidad patrimonial de la entidad?",100]
[null,null,null,null,"Seguimiento y evaluación",{"$f":"IF(SUM(H45:H47)=0,\"\",AVERAGEIF(H45:H47,\"<>0\"))","v":100},"¿La entidad mide y evalúa la tasa de éxito procesal en las acciones de repetición incoadas?",100]
[null,null,null,null,null,null,"¿Los apoderados presentan un informe al Comité de Conciliación para que este pueda determinar la procedencia del llamamiento en garantía, para fines de repetición, en los procesos judiciales de responsabilidad patrimonial?",100]
[null,null,null,null,null,null,"¿El Comité de Conciliación informa al Coordinador de los agentes del Ministerio Público ante la Jurisdicción en lo Contencioso Administrativo las correspondientes decisiones, anexando copia de la providencia condenatoria, de la prueba de su pago y señalando el fundamento de la decisión en los casos en que se decida no instaurar la acción de repetición?",100]
[null,null,"Prevención del daño antijurídico",{"$f":"IF(SUM(H48:H55)=0,\"\",AVERAGEIF((H48:H55),\"<>0\"))","v":100},"Planeación",{"$f":"IF(SUM(H48:H49)=0,\"\",AVERAGEIF(H48:H49,\"<>0\"))","v":100},"¿El comité de conciliación se constituye en la instancia administrativa que actúa como sede de estudio, análisis y formulación de políticas sobre prevención del daño antijurídico?",100]
[null,null,null,null,null,null,"¿La entidad cuenta con una política pública de prevención del daño antijurídico aprobada tanto por el Comité de Conciliación mediante acta, como por la ANDJE?",100,"DEBIDAMENTE REVISADA Y APROBADA POR LA ANDJE DE ACUERDO CON LOS LINEAMIENTO Y CARGADA EN EL EKOGUI."]
[null,null,null,null,"Ejecución",{"$f":"IF(SUM(H50:H52)=0,\"\",AVERAGEIF(H50:H52,\"<>0\"))","v":100},"¿La entidad implementa el plan de acción de su política de prevención del daño antijurídico dentro del año calendario (enero-diciembre) para el cual fue diseñado?",100]
[null,null,null,null,null,null,"¿La entidad ha adoptado procesos y/o procedimientos internos específicos correspondientes a la prevención del daño antijurídico en el sistema de gestión de calidad de la entidad? ",100,"EL INPEC CUENTA, APLICA Y DOCUMENTA PROCEDIMIENTOS Y GUIAS ENCAMINADAS A PREVENIR EL DAÑO ANTIJURIDICO DESDE LA PERSPECTIVA DE SEGURIDAD, USO DE HERRAMIENTAS, CONTROL DE REGIMEN INTERNO, LOS RELACIONADOS CON TALENTO HUMANO Y DEMAS QUE PUEDAN GENERAR VULNERACIÓN AL DEBIDO PROCESO, Y HACEN PARTE DEL SISTEMA DE GESTIÓN INTEGRADO."]
[null,null,null,null,null,null,"¿La entidad realiza gestiones de difusión y/o capacitación de los planes de prevención daño antijurídico?",100]
[null,null,null,null,"Seguimiento y evaluación",{"$f":"IF(SUM(H53:H55)=0,\"\",AVERAGEIF(H53:H55,\"<>0\"))","v":100},"¿La entidad hace seguimiento ANUAL al plan de acción y al(los) indicador(es) formulado(s) en sus políticas de prevención del daño antijurídico?",100]
[null,null,null,null,null,null,"¿El área mide y evalúa los resultados periódicamente de los indicadores que miden la eficiencia, eficacia y efectividad de las políticas realizadas en materia de prevención?",100]
[null,null,null,null,null,null,"¿La entidad remite el informe de seguimiento ANUAL al plan de acción y al(los) indicador(es) formulado(s) en sus políticas de prevención del daño antijurídico ala ANDJE?",100]

{"sheet":"Gráficas","index":3,"n_rows":170,"n_cols":10,"rows_kept":170,"cut":false,"hidden":false,"merged":[[89,8,89,11],[113,8,113,11],[139,8,139,11],[163,8,163,11],[111,8,111,11],[112,7,112,12],[137,8,137,11],[161,8,161,11],[162,8,162,11],[2,2,2,17],[62,8,62,11],[87,8,87,11],[63,6,63,13],[88,7,88,12],[7,5,7,13],[64,8,64,11]]}
[]
[]
[null,null,"RESULTADOS DE GESTIÓN DEFENSA JURÍDICA"]
[]
[]
[null,null,"1. Calificación total:"]
[]
[null,null,null,null,null,"            Puntaje promedio Política de Defensa Jurídica"]
[]
[]
[]
[]
[null,null,null,null,null,null,null,"Niveles","Calificación"]
[null,null,null,null,null,null,{"$f":"+Inicio!C5","v":"POLÍTICA DEFENSA JURÍDICA - NACIÓN"},100,{"$f":"+Autodiagnóstico!G6","v":100}]
[]
[]
[]
[]
[]
[]
[]
[]
[]
[]
[]
[]
[]
[]
[]
[null,null,"2. Calificación por componentes: "]
[]
[]
[]
[null,null,null,null,null,null,null,null,"Puntaje promedio por Componente"]
[]
[]
[]
[]
[]
[]
[null,null,null,null,null,null,null,"Variable","Rangos","Puntaje actual"]
[null,null,null,null,null,null,null,{"$f":"+Autodiagnóstico!C11","v":"Actuaciones Prejudiciales"},100,{"$f":"+Autodiagnóstico!D11","v":100}]
[null,null,null,null,null,null,null,{"$f":"+Autodiagnóstico!C24","v":"Defensa Judicial"},100,{"$f":"+Autodiagnóstico!D24","v":100}]
[null,null,null,null,null,null,null,{"$f":"+Autodiagnóstico!C35","v":"Cumplimiento de sentencias y conciliaciones"},100,{"$f":"+Autodiagnóstico!D35","v":100}]
[null,null,null,null,null,null,null,{"$f":"+Autodiagnóstico!C41","v":"Acción de repetición y recuperación de bienes públicos"},100,{"$f":"+Autodiagnóstico!D41","v":100}]
[null,null,null,null,null,null,null,{"$f":"+Autodiagnóstico!C48","v":"Prevención del daño antijurídico"},100,{"$f":"+Autodiagnóstico!D48","v":100}]
[null,null,null,null,null,null,null,{"$f":"+Autodiagnóstico!#REF!","v":{"$error":"#REF!"}},100,{"$f":"+Autodiagnóstico!#REF!","v":{"$error":"#REF!"}}]
[]
[]
[]
[]
[]
[]
[]
[]
[]
[]
[]
[null,null,"3. Calificación por categorías:"]
[]
[]
[]
[null,null,null,null,null,null,null,null,"Categorías del componente 1"]
[null,null,null,null,null,null,{"$f":"+Autodiagnóstico!C11","v":"Actuaciones Prejudiciales"}]
[null,null,null,null,null,null,null,null,"Puntaje promedio"]
[]
[]
[null,null,null,null,null,null,"Acciones","Niveles","Calificación"]
[null,null,null,null,null,null,{"$f":"+Autodiagnóstico!E11","v":"Planeación"},100,{"$f":"+Autodiagnóstico!F11","v":100}]
[null,null,null,null,null,null,{"$f":"+Autodiagnóstico!E16","v":"Ejecución"},100,{"$f":"+Autodiagnóstico!F16","v":100}]
[null,null,null,null,null,null,{"$f":"+Autodiagnóstico!E20","v":"Seguimiento y evaluación"},100,{"$f":"+Autodiagnóstico!F20","v":100}]
[]
[]
[]
[]
[]
[]
[]
[]
[]
[]
[]
[]
[]
[]
[]
[]
[null,null,null,null,null,null,null,null,"Categorías del componente 2"]
[null,null,null,null,null,null,null,{"$f":"+Autodiagnóstico!C24","v":"Defensa Judicial"}]
[null,null,null,null,null,null,null,null,"Puntaje promedio"]
[]
[]
[]
[]
[]
[null,null,null,null,null,null,null,"Acciones","Niveles","Calificación"]
[null,null,null,null,null,null,null,{"$f":"+Autodiagnóstico!E24","v":"Planeación"},100,{"$f":"+Autodiagnóstico!F24","v":100}]
[null,null,null,null,null,null,null,{"$f":"+Autodiagnóstico!E28","v":"Ejecución"},100,{"$f":"+Autodiagnóstico!F28","v":100}]
[null,null,null,null,null,null,null,{"$f":"+Autodiagnóstico!E30","v":"Seguimiento y evaluación"},100,{"$f":"+Autodiagnóstico!F30","v":100}]
[]
[]
[]
[]
[]
[]
[]
[]
[]
[]
[]
[]
[null,null,null,null,null,null,null,null,"Categorías del componente 3"]
[null,null,null,null,null,null,null,{"$f":"+Autodiagnóstico!C35","v":"Cumplimiento de sentencias y conciliaciones"}]
[null,null,null,null,null,null,null,null,"Puntaje promedio"]
[]
[]
[]
[]
[null,null,null,null,null,null,null,{"$f":"+Autodiagnóstico!E35","v":"Planeación"},100,{"$f":"+Autodiagnóstico!F35","v":100}]
[null,null,null,null,null,null,null,{"$f":"+Autodiagnóstico!E37","v":"Ejecución"},100,{"$f":"+Autodiagnóstico!F37","v":100}]
[null,null,null,null,null,null,null,{"$f":"+Autodiagnóstico!E39","v":"Seguimiento y evaluación"},100,{"$f":"+Autodiagnóstico!F39","v":100}]
[]
[]
[]
[]
[]
[]
[]
[]
[]
[]
[]
[]
[]
[]
[]
[]
[null,null,null,null,null,null,null,null,"Categorías del componente 4"]
[null,null,null,null,null,null,null,null,{"$f":"+Autodiagnóstico!C41","v":"Acción de repetición y recuperación de bienes públicos"}]
[null,null,null,null,null,null,null,null,"Puntaje promedio"]
[]
[]
[]
[null,null,null,null,null,null,null,{"$f":"+Autodiagnóstico!E41","v":"Planeación"},100,{"$f":"+Autodiagnóstico!F41","v":100}]
[null,null,null,null,null,null,null,{"$f":"+Autodiagnóstico!E42","v":"Ejecución"},100,{"$f":"+Autodiagnóstico!F42","v":100}]
[null,null,null,null,null,null,null,{"$f":"+Autodiagnóstico!E45","v":"Seguimiento y evaluación"},100,{"$f":"+Autodiagnóstico!F45","v":100}]
[]
[]
[]
[]
[]
[]
[]
[]
[]
[]
[]
[]
[]
[]
[]
[null,null,null,null,null,null,null,null,"Categorías del componente 5"]
[null,null,null,null,null,null,null,null,{"$f":"+Autodiagnóstico!C48","v":"Prevención del daño antijurídico"}]
[null,null,null,null,null,null,null,null,"Puntaje promedio"]
[]
[]
[]
[null,null,null,null,null,null,null,{"$f":"+Autodiagnóstico!E48","v":"Planeación"},100,{"$f":"+Autodiagnóstico!F48","v":100}]
[null,null,null,null,null,null,null,{"$f":"+Autodiagnóstico!E50","v":"Ejecución"},100,{"$f":"+Autodiagnóstico!F50","v":100}]
[null,null,null,null,null,null,null,{"$f":"+Autodiagnóstico!E53","v":"Seguimiento y evaluación"},100,{"$f":"+Autodiagnóstico!F53","v":100}]

{"sheet":"Plan de Implementación","index":4,"n_rows":53,"n_cols":19,"rows_kept":53,"cut":false,"hidden":false,"merged":[[4,18,5,18],[38,3,40,3],[4,17,5,17],[2,2,2,18],[7,2,19,2],[20,2,30,2],[31,2,36,2],[16,3,19,3],[20,3,23,3],[4,5,5,5],[31,3,32,3],[4,9,5,9],[4,8,5,8],[4,11,4,15],[4,16,5,16],[26,3,30,3],[7,1,51,1],[4,2,5,2],[4,3,5,3],[4,4,5,4],[35,3,36,3],[33,3,34,3],[37,2,43,2],[44,2,51,2],[49,3,51,3],[41,3,43,3],[44,3,45,3],[46,3,48,3],[24,3,25,3],[4,10,5,10],[4,7,5,7],[4,6,5,6],[7,3,11,3],[12,3,15,3]]}
[]
[]
[null,null,"PLAN DE IMPLEMENTACIÓN DEFENSA JURÍDICA"]
[]
[null,null,"COMPONENTES","CATEGORÍAS","ACTIVIDADES DE GESTIÓN","PUNTAJE","GUÍAS Y NORMAS TÉCNICAS","BUENAS PRÁCTICAS E INNOVACIÓN","NORMATIVIDAD","OTROS","DISEÑE ALTERNATIVAS DE MEJORA\nACTIVIDADES DEL PLAN DE IMPLEMENTACIÓN","PROGRAMACIÓN DE AVANCE",null,null,null,null,"PLAZO DE REALIZACIÓN DE LAS ACTIVIDADES\n(Fecha de terminación)","RECURSOS ADICIONALES PARA DESAROLLAR ACTIVIDADES","EVALUACIÓN DE LA EFICACIA DE\nLAS ACCIONES IMPLEMENTADAS"]
[null,null,null,null,null,null,null,null,null,null,null,"1er Trimestre ","2do Trimestre ","3er Trimestre ","4to Trimestre","PRODUCTO / ENTREGABLE"]
[]
[null,null,"Actuaciones Prejudiciales","Planeación","La entidad ha integrado un Comité de Conciliación conformado por funcionarios de nivel directivo designados para el efecto, de acuerdo con lo previsto en la Ley 23 de 1991, modificada por la Ley 446 de 1998.",{"$f":"+Autodiagnóstico!H11","v":100},null,null," Ley 23 de 1991 modificada por la Ley 446 de 1998 y Artículo 2.2.4.3.1.2.3 del Decreto 1069 de 2015."]
[null,null,null,null,"El Comité de Conciliación seleccionó un secretario técnico abogado y está vinculado a la planta de personal.",{"$f":"+Autodiagnóstico!H12","v":100},null,null,"Decreto 1069 de 2015, Artículo 2.2.4.3.1.2.5. Numeral 9\n\nLey 489 de 1998, Artículo 9"]
[null,null,null,null,"El Comité de Conciliación elaboró su propio reglamento y está  aprobado mediante resolución, circular o memorando.",{"$f":"+Autodiagnóstico!H13","v":100},null,null,"Decreto 1069 de 2015, Artículo 2.2.4.3.1.2.5. Numeral 10"]
[null,null,null,null,"El Comité de Conciliación elabora documentos con los  perfiles de abogados externos,  y tiene en cuenta los criterios de  litigiosidad, complejidad de los casos y  el impacto de los procesos. Adicionalmente, remite los  perfiles de abogados externos a la oficina jurídica,  a la dependencia encargada de la contratación y al representante legal.",{"$f":"+Autodiagnóstico!H14","v":100},null,null,"Decreto 1069 de 2015, Artículo 2.2.4.3.1.2.5. Numeral 8"]
[null,null,null,null,"La entidad hace y utiliza fichas técnicas o algún otro documento técnico para el estudio de los casos. (Conciliaciones extrajudiciales, conciliaciones judiciales, pactos de cumplimiento y acciones de repetición o llamamiento en garantía)",{"$f":"+Autodiagnóstico!H15","v":100}]
[null,null,null,"Ejecución","El Comité de Conciliación decide las solicitudes de conciliación en un plazo máximo de quince (15) días, contados a partir del momento en que reciben la solicitud de conciliación.",{"$f":"+Autodiagnóstico!H16","v":100},null,null,"Decreto 1069 de 2015, Artículo 2.2.4.3.1.2.4."]
[null,null,null,null,"Los  apoderados de los casos tienen los documentos necesarios que les permitan elaborar las fichas de estudio para el estudio de la acción de repetición. Los documentos básicos son: copia del fallo, y pago de la condena, de la conciliación o de cualquier otro crédito derivado de la responsabilidad patrimonial de la entidad.",{"$f":"+Autodiagnóstico!H17","v":100},null,null,"Decreto 1069 de 2015, Artículo 2.2.4.3.1.2.5. Numeral 6 y 7 y Artículo 2.2.4.3.1.2.12. Modificado por el Art. 3º, Decreto Nacional 1167 de 2016."]
[null,null,null,null,"El secretario técnico elabora las actas de cada sesión del comité debidamente, suscrita por el presidente y el secretario que haya asistido, dentro de los cinco (5) días siguientes a la correspondiente sesión.",{"$f":"+Autodiagnóstico!H18","v":100},null,null,"Decreto 1069 de 2015, Artículo 2.2.4.3.1.2.6. Numeral 1"]
[null,null,null,null,"El Comité de Conciliación tiene un estudio de casos reiterados y  lo actualiza semestralmente.",{"$f":"+Autodiagnóstico!H19","v":100},null,null,"Decreto 1069 de 2015, Artículo 2.2.4.3.1.2.5. Numeral 1, 4 y 5 "]
[null,null,null,"Seguimiento y evaluación","La entidad realiza los estudios y evaluación de sus  procesos  anualmente.",{"$f":"+Autodiagnóstico!H20","v":100},null,null,"Decreto 1069 de 2015, Artículo 2.2.4.3.1.2.5. Numeral 3"]
[null,null,null,null,"El Comité de Conciliación efectúa un seguimiento permanente a la gestión de los apoderados externos sobre los procesos que se les hayan asignado.",{"$f":"+Autodiagnóstico!H21","v":100},null,null,"Decreto 1069 de 2015, Artículo 2.2.4.3.1.2.5. Numeral 8"]
[null,null,null,null,"El Comité de Conciliación ha formulado indicadores y conoce el resultado de la medición, estos de acuerdo con la periodicidad definida en el plan anual del Comité de Conciliación.",{"$f":"+Autodiagnóstico!H22","v":100}]
[null,null,null,null,"La entidad registra las solicitudes de conciliación, o de otros Métodos Alternativos de Solución de Conflictos, y sus actuaciones y decisiones en un sistema de Información y, adicionalmente, cuenta con copia física y/o magnética de los documentos soporte.",{"$f":"+Autodiagnóstico!H23","v":100}]
[null,null,"Defensa Judicial","Planeación","El área de defensa judicial cuenta con la tabla de retención documental y/o tablas de valoración documental para la gestión de archivos.",{"$f":"+Autodiagnóstico!H24","v":100},null,null,"Ley 594 de 2000"]
[null,null,null,null,"El Comité de Conciliación diseñó y aprobó un documento con las políticas de defensa judicial de la entidad.",{"$f":"+Autodiagnóstico!H25","v":100},null,null,"Decreto 1069 de 2015, Artículo 2.2.4.3.1.2.5. Numeral 2"]
[null,null,null,null,"La entidad capacita y mantiene actualizados a los abogados que defienden sus intereses litigiosos",{"$f":"+Autodiagnóstico!H26","v":100}]
[null,null,null,null,"En la entidad existen protocolos o procedimientos internos de manejo de archivos con el fin de facilitar a los apoderados la consecución de los antecedentes administrativos, para poder allegarlos en tiempo a los procesos judiciales.",{"$f":"+Autodiagnóstico!H27","v":100},null,null,"Ley 594 de 2000"]
[null,null,null,"Ejecución","El Comité de Conciliación cuenta con estrategias de defensa focalizadas en la reiteración,  la complejidad de los casos y el impacto del caso en términos de pretensiones, posibilidad de éxito, visibilidad ante los medios de comunicación, entre otros. ",{"$f":"+Autodiagnóstico!H28","v":100},null,null,"Decreto 1069 de 2015, Artículo 2.2.4.3.1.2.5. Numeral 2 y 3"]
[null,null,null,null,"La entidad tiene en consideración los lineamientos de fortalecimiento de la defensa expedidos por la ANDJE,  aplica las líneas jurisprudenciales que ha construido la  ANDJE y las que ellos mismos realizan, en el fortalecimiento de la defensa.",{"$f":"+Autodiagnóstico!H29","v":100}]
[null,null,null,"Seguimiento y evaluación","La entidad cuenta con un sistema de información o base de datos actualizada que contenga los procesos en los que participa.",{"$f":"+Autodiagnóstico!H30","v":100}]
[null,null,null,null,"En la entidad reposa en copia física y/o magnética, todo lo respectivo al trámite de los procesos judiciales.",{"$f":"+Autodiagnóstico!H31","v":100},null,null,"Ley 594 de 2000"]
[null,null,null,null,"El área mide y evalúa los resultados periódicamente de sus indicadores que miden la eficiencia, eficacia y efectividad de las políticas realizadas en materia de defensa jurídica.",{"$f":"+Autodiagnóstico!H32","v":100}]
[null,null,null,null,"La entidad estudia y evalúa los procesos que cursen o hayan cursado en contra de la entidad, para determinar las causas generadoras de los conflictos; el índice de condenas; los tipos de daño por los cuales resulta demandado o condenado; y las deficiencias de las actuaciones procesales por parte de los apoderados, con el objeto de proponer correctivos.",{"$f":"+Autodiagnóstico!H33","v":100}]
[null,null,null,null,"La entidad mide y evalúa la tasa de éxito procesal.",{"$f":"+Autodiagnóstico!H34","v":100},null,null,"Decreto 1069 de 2015, Artículo 2.2.4.3.1.2.5. Numeral 3"]
[null,null,"Cumplimiento de sentencias y conciliaciones","Planeación","La entidad cuenta con una metodología y/o planeación para elaborar la provisión contable de las conciliaciones y procesos judiciales, de acuerdo con la normatividad de la Contaduría General de la Nación.",{"$f":"+Autodiagnóstico!H35","v":100},null,null,"Resolución No. 116 de 2017 de la Contaduría General de la Nación\nResolución No. 353 de 2016 de la ANDJE, Por la cual se adopta una metodología del cálculo de la provisión contable."," "]
[null,null,null,null,"La entidad obedece los parámetros fijados en los decretos  2469 de 2015 y 1342 de 2016 que reglamentan los pagos desde el Decreto Único del Sector de Hacienda y Crédito Público.",{"$f":"+Autodiagnóstico!H36","v":100},null,null,"Decreto 2469 de 2015\n\nDecreto 1342 de 2016\n\nCircular 10 y 12 de 2014 de la ANDJE"]
[null,null,null,"Ejecución","La entidad cumple oportunamente el pago de las sentencias y conciliaciones durante los 10 meses siguientes a la ejecutoría.",{"$f":"+Autodiagnóstico!H37","v":100},null,null,"Ley 1437 de 2011, Artículos 192 al 195"]
[null,null,null,null,"La entidad identifica y analiza los pagos realizados por concepto de capital e intereses moratorios de sentencias y conciliaciones.",{"$f":"+Autodiagnóstico!H38","v":100}]
[null,null,null,"Seguimiento y evaluación","La entidad cuenta con un sistema de información o base de datos actualizada que contenga un inventario con los trámites de cumplimiento de créditos judiciales.",{"$f":"+Autodiagnóstico!H39","v":100}]
[null,null,null,null,"Realiza seguimiento y evalúa el estado contable de los créditos Judiciales .",{"$f":"+Autodiagnóstico!H40","v":100},null,null,"Resolución No. 116 de 2017 de la Contaduría General de la Nación"]
[null,null,"Acción de repetición y recuperación de bienes públicos","Planeación","El Comité de Conciliación evalúa los procesos que hayan sido fallados en contra de la entidad basado en estudios pertinentes, con el fin de determinar la procedencia de la acción de repetición.",{"$f":"+Autodiagnóstico!H41","v":100},null,null,"Decreto 1069 de 2015, Artículo 2.2.4.3.1.2.5. Numeral 6 y Artículo 2.2.4.3.1.2.12. Modificado por el Art. 3º, Decreto Nacional 1167 de 2016."]
[null,null,null,"Ejecución","El Comité de Conciliación adopta la decisión motivada de iniciar o no el proceso de repetición en un término no superior a cuatro (4) meses, y se presenta la correspondiente demanda, cuando la misma resulte procedente, dentro de los dos (2) meses siguientes a la decisión. Lo anterior es verificado por la oficina de control interno.",{"$f":"+Autodiagnóstico!H42","v":100},null,null,"Decreto 1069 de 2015, Artículo 2.2.4.3.1.2.12. Modificado por el Art. 3º, Decreto Nacional 1167 de 2016."]
[null,null,null,null,"El Comité de Conciliación decide sobre la formulación del llamamiento en garantía con fines de repetición para  los casos presentados. ",{"$f":"+Autodiagnóstico!H43","v":100},null,null,"Decreto 1069 de 2015, Artículo 2.2.4.3.1.2.5. Numeral 7"]
[null,null,null,null,"Los  apoderados de los casos tienen los documentos necesarios que les permitan elaborar las fichas de estudio para la acción de repetición. Los documentos básicos son: copia del fallo, y pago de la condena, de la conciliación o de cualquier otro crédito derivado de la responsabilidad patrimonial de la entidad.",{"$f":"+Autodiagnóstico!H44","v":100}]
[null,null,null,"Seguimiento y evaluación","La entidad mide y evalúa la tasa de éxito procesal en las acciones de repetición incoadas.",{"$f":"+Autodiagnóstico!H45","v":100}]
[null,null,null,null,"Los apoderados presentan un informe al Comité de Conciliación para que este pueda determinar la procedencia del llamamiento en garantía, para fines de repetición, en los procesos judiciales de responsabilidad patrimonial.",{"$f":"+Autodiagnóstico!H46","v":100},null,null,"Decreto 1069 de 2015, Artículo 2.2.4.3.1.2.13."]
[null,null,null,null,"El Comité de Conciliación informa al Coordinador de los agentes del Ministerio Público ante la Jurisdicción en lo Contencioso Administrativo las correspondientes decisiones, anexando copia de la providencia condenatoria, de la prueba de su pago y señalando el fundamento de la decisión en los casos en que se decida no instaurar la acción de repetición.",{"$f":"+Autodiagnóstico!H47","v":100},null,null,"Ley 678 de 2001, Decreto 1069 de 2015, Artículo 2.2.4.3.1.2.5. y 2.2.4.3.1.2.6."]
[null,null,"Prevención del daño antijurídico","Planeación","El comité de conciliación se constituye en una instancia administrativa que deberá actuar como sede de estudio, análisis y formulación de políticas sobre prevención del daño antijurídico",{"$f":"+Autodiagnóstico!H48","v":100},null,null,"Decreto 1069 de 2015, Artículo 2.2.4.3.1.2.5. Numeral 1"]
[null,null,null,null,"La entidad cuenta con una política pública de prevención del daño antijurídico aprobada tanto por el Comité de Conciliación mediante acta, como por la ANDJE.",{"$f":"+Autodiagnóstico!H49","v":100},null,null,"Decreto 1069 de 2015, Artículo 2.2.4.3.1.2.5. Numeral 1"]
[null,null,null,"Ejecución","La entidad envía cada año a la ANDJE, el número de nuevas demandas radicadas en contra de la entidad por las causas primarias incluidas en sus políticas de prevención del daño antijurídico, permitiendo identificar si hay una reducción en la litigiosidad de las entidades a nivel de las causas primarias señaladas en sus políticas de prevención.",{"$f":"+Autodiagnóstico!H50","v":100}]
[null,null,null,null,"La entidad ha adoptado procesos y/o procedimientos internos específicos para la defensa jurídica en los sistemas de gestión de calidad de las entidades.",{"$f":"+Autodiagnóstico!H51","v":100}]
[null,null,null,null,"La entidad realiza gestiones de difusión y/o capacitación de los planes de prevención daño antijurídico.",{"$f":"+Autodiagnóstico!H52","v":100}]
[null,null,null,"Seguimiento y evaluación","La entidad hace seguimiento al plan de acción y al(los) indicador(es) formulado(s) en sus políticas de prevención del daño antijurídico.",{"$f":"+Autodiagnóstico!H53","v":100}]
[null,null,null,null,"El área mide y evalúa los resultados periódicamente de los indicadores que miden la eficiencia, eficacia y efectividad de las políticas realizadas en materia de prevención.",{"$f":"+Autodiagnóstico!H53","v":100},null,null,"Decreto 1069 de 2015, Artículo 2.2.4.3.1.2.7"]
[null,null,null,null,"¿La entidad remite el informe de seguimiento ANUAL al plan de acción y al(los) indicador(es) formulado(s) en sus políticas de prevención del daño antijurídico ala ANDJE?",{"$f":"+Autodiagnóstico!H55","v":100}]
[null,null,null,null,null,null,null,null,"\nDecreto 1069 de 2015, Capítulo 4\nArtículo. 2.2.3.4.1.13\n"]

{"sheet":"Tipología entidad","index":5,"n_rows":107,"n_cols":3,"rows_kept":107,"cut":false,"hidden":true,"merged":[]}
["INSTITUCIÓN","Tipología"]
["AGENCIA COLOMBIANA PARA LA REINTEGRACIÓN DE PERSONAS Y GRUPOS ALZADOS EN ARMAS","Tipo B"]
["AGENCIA DEL INSPECTOR GENERAL DE TRIBUTOS, RENTAS Y CONTRIBUCIONES PARAFISCALES","Tipo C"]
["AGENCIA LOGÍSTICA DE LAS FUERZAS MILITARES","Tipo A"]
["AGENCIA NACIONAL DE CONTRATACIÓN PÚBLICA -COLOMBIA COMPRA EFICIENTE-","Tipo C"]
["AGENCIA NACIONAL DE DEFENSA JURIDICA DEL ESTADO","Tipo C"]
["AGENCIA NACIONAL DE HIDROCARBUROS","Tipo B"]
["AGENCIA NACIONAL DE INFRAESTRUCTURA.","Tipo A"]
["AGENCIA NACIONAL DE MINERÍA","Tipo B"]
["AGENCIA NACIONAL DE SEGURIDAD VIAL","Tipo C"]
["AGENCIA NACIONAL DEL ESPECTRO","Tipo C"]
["AGENCIA PRESIDENCIAL DE COOPERACIÓN INTERNACIONAL DE COLOMBIA","Tipo C"]
["ARCHIVO GENERAL DE LA NACIÓN","Tipo C"]
["AUTORIDAD NACIONAL DE ACUICULTURA Y PESCA","Tipo C"]
["AUTORIDAD NACIONAL DE LICENCIAS AMBIENTALES","Tipo C"]
["CAJA DE RETIRO DE LAS FUERZAS MILITARES","Tipo A"]
["CAJA DE SUELDOS DE RETIRO DE LA POLICÍA NACIONAL","Tipo B"]
["CENTRO DE MEMORIA HISTÓRICA","Tipo C"]
["CLUB MILITAR","Tipo C"]
["COMISIÓN DE REGULACIÓN DE AGUA POTABLE Y SANEAMIENTO BÁSICO","Tipo C"]
["COMISIÓN DE REGULACIÓN DE COMUNICACIONES","Tipo C"]
["COMISIÓN DE REGULACIÓN DE ENERGÍA Y GAS","Tipo C"]
["DEFENSA CIVIL COLOMBIANA","Tipo C"]
["DEPARTAMENTO ADMINISTRATIVO - DIRECCION NACIONAL DE INTELIGENCIA","Tipo B"]
["DEPARTAMENTO ADMINISTRATIVO DE CIENCIA, TECNOLOGÍA E INNOVACIÓN","Tipo B"]
["DEPARTAMENTO ADMINISTRATIVO DE LA FUNCIÓN PÚBLICA","Tipo C"]
["DEPARTAMENTO ADMINISTRATIVO DE LA PRESIDENCIA DE LA REPÚBLICA","Tipo A"]
["DEPARTAMENTO ADMINISTRATIVO DEL DEPORTE, LA RECREACIÓN, LA ACTIVIDAD FÍSICA Y EN APROVECHAMIENTO DEL TIEMPO LIBRE","Tipo B"]
["DEPARTAMENTO ADMINISTRATIVO NACIONAL DE ESTADÍSTICA","Tipo A"]
["DEPARTAMENTO ADMINISTRATIVO PARA LA PROSPERIDAD SOCIAL","Tipo A"]
["DEPARTAMENTO NACIONAL DE PLANEACIÓN","Tipo A"]
["DIRECCION NACIONAL DE BOMBEROS","Tipo C"]
["DIRECCION NACIONAL DE DERECHO DE AUTOR","Tipo C"]
["ESCUELA SUPERIOR DE ADMINISTRACIÓN PÚBLICA","Tipo B"]
["ESCUELA TECNOLÓGICA INSTITUTO TÉCNICO CENTRAL","Tipo C"]
["FONDO ADAPTACIÓN","Tipo B"]
["FONDO DE GARANTÍAS DE INSTITUCIONES FINANCIERAS","Tipo C"]
["FONDO DE PASIVO SOCIAL DE FERROCARRILES NACIONALES DE COLOMBIA","Tipo C"]
["FONDO DE PREVISIÓN SOCIAL DEL CONGRESO DE LA REPÚBLICA","Tipo C"]
["FONDO NACIONAL DE AHORRO","Tipo A"]
["FONDO ROTATORIO DE LA POLICÍA NACIONAL","Tipo B"]
["HOSPITAL MILITAR CENTRAL","Tipo A"]
["INSTITUTO CARO Y CUERVO","Tipo C"]
["INSTITUTO COLOMBIANO AGROPECUARIO ICA","Tipo A"]
["INSTITUTO COLOMBIANO DE ANTROPOLOGÍA E HISTORIA","Tipo C"]
["INSTITUTO COLOMBIANO DE BIENESTAR FAMILIAR","Tipo A"]
["INSTITUTO COLOMBIANO DE DESARROLLO RURAL - INCODER","Tipo B"]
["INSTITUTO COLOMBIANO PARA LA EVALUACIÓN DE LA EDUCACIÓN ICFES","Tipo B"]
["INSTITUTO DE CASAS FISCALES DEL EJÉRCITO","Tipo C"]
["INSTITUTO DE HIDROLOGÍA, METEOROLOGÍA Y ESTUDIOS AMBIENTALES","Tipo B"]
["INSTITUTO DE PLANIFICACIÓN Y PROMOCIÓN DE SOLUCIONES ENERGÉTICAS PARA LAS ZONAS NO INTERCONECTADAS (IPSE)","Tipo C"]
["INSTITUTO GEOGRÁFICO AGUSTÍN CODAZZI","Tipo A"]
["INSTITUTO NACIONAL DE FORMACIÓN TÉCNICA PROFESIONAL DE SAN JUAN DEL CESAR","Tipo C"]
["INSTITUTO NACIONAL DE FORMACIÓN TÉCNICA PROFESIONAL DEL DEPARTAMENTO DE SAN ANDRÉS, PROVIDENCIA Y SANTA CATALINA","Tipo C"]
["INSTITUTO NACIONAL DE METROLOGÍA","Tipo C"]
["INSTITUTO NACIONAL DE SALUD","Tipo B"]
["INSTITUTO NACIONAL DE VÍAS - INVIAS","Tipo A"]
["INSTITUTO NACIONAL DE VIGILANCIA DE MEDICAMENTOS Y ALIMENTOS","Tipo A"]
["INSTITUTO NACIONAL PARA CIEGOS","Tipo C"]
["INSTITUTO NACIONAL PARA SORDOS","Tipo C"]
["INSTITUTO NACIONAL PENITENCIARIO Y CARCELARIO - INPEC -","Tipo A"]
["MINISTERIO DE AGRICULTURA Y DESARROLLO RURAL - MIN AGRICULTURA","Tipo A"]
["MINISTERIO DE AMBIENTE Y DESARROLLO SOSTENIBLE","Tipo A","Se cambia 14 marzo 2017 por decisión FP. Correo Sergio"]
["MINISTERIO DE COMERCIO, INDUSTRIA Y TURISMO","Tipo A"]
["MINISTERIO DE CULTURA","Tipo A","Se cambia 14 marzo 2017 por decisión FP. Correo Sergio"]
["MINISTERIO DE DEFENSA NACIONAL","Tipo A"]
["MINISTERIO DE EDUCACIÓN NACIONAL","Tipo A"]
["MINISTERIO DE HACIENDA Y CRÉDITO PÚBLICO","Tipo A"]
["MINISTERIO DE JUSTICIA Y DEL DERECHO","Tipo A","Se cambia 14 marzo 2017 por decisión FP. Correo Sergio"]
["MINISTERIO DE MINAS Y ENERGÍA","Tipo A"]
["MINISTERIO DE RELACIONES EXTERIORES","Tipo A"]
["MINISTERIO DE SALUD Y PROTECCIÓN SOCIAL","Tipo A"]
["MINISTERIO DE TECNOLOGÍAS DE LA INFORMACIÓN Y LAS COMUNICACIONES","Tipo A","Se cambia 14 marzo 2017 por decisión FP. Correo Sergio"]
["MINISTERIO DE TRANSPORTE","Tipo A"]
["MINISTERIO DE VIVIENDA, CIUDAD Y TERRITORIO","Tipo A"]
["MINISTERIO DEL INTERIOR","Tipo A","Se cambia 14 marzo 2017 por decisión FP. Correo Sergio"]
["MINISTERIO DEL TRABAJO","Tipo A"]
["PARQUES NACIONALES NATURALES DE COLOMBIA","Tipo B"]
["SERVICIO GEOLÓGICO COLOMBIANO","Tipo B"]
["SERVICIO NACIONAL DE APRENDIZAJE - SENA -","Tipo A"]
["SUPERINTENDENCIA DE INDUSTRIA Y COMERCIO","Tipo B"]
["SUPERINTENDENCIA DE LA ECONOMÍA SOLIDARIA","Tipo C"]
["SUPERINTENDENCIA DE NOTARIADO Y REGISTRO","Tipo A"]
["SUPERINTENDENCIA DE PUERTOS Y TRANSPORTE","Tipo C"]
["SUPERINTENDENCIA DE SERVICIOS PÚBLICOS DOMICILIARIOS","Tipo B"]
["SUPERINTENDENCIA DE SOCIEDADES","Tipo B"]
["SUPERINTENDENCIA DE VIGILANCIA Y SEGURIDAD PRIVADA","Tipo C"]
["SUPERINTENDENCIA DEL SUBSIDIO FAMILIAR - SSF -","Tipo C"]
["SUPERINTENDENCIA FINANCIERA DE COLOMBIA","Tipo A"]
["SUPERINTENDENCIA NACIONAL DE SALUD","Tipo B"]
["UNIDAD ADMINISTRATIVA ESPECIAL CONTADURÍA GENERAL DE LA NACIÓN","Tipo C"]
["UNIDAD ADMINISTRATIVA ESPECIAL DE AERONÁUTICA CIVIL","Tipo A"]
["UNIDAD ADMINISTRATIVA ESPECIAL DE GESTIÓN DE RESTITUCIÓN DE TIERRAS DESPOJADAS ","Tipo B"]
["UNIDAD ADMINISTRATIVA ESPECIAL DE GESTIÓN PENSIONAL Y CONTRIBUCIONES PARAFISCALES DE LA PROTECCIÓN SOCIAL","Tipo A"]
["UNIDAD ADMINISTRATIVA ESPECIAL DE ORGANIZACIONES SOLIDARIAS","Tipo C"]
["UNIDAD ADMINISTRATIVA ESPECIAL DIRECCIÓN DE IMPUESTOS Y ADUANAS NACIONALES","Tipo A"]
["UNIDAD ADMINISTRATIVA ESPECIAL JUNTA CENTRAL DE CONTADORES","Tipo C"]
["UNIDAD ADMINISTRATIVA ESPECIAL MIGRACIÓN COLOMBIA","Tipo A"]
["UNIDAD ADMINISTRATIVA ESPECIAL PARA LA ATENCIÓN Y REPARACIÓN INTEGRAL A LAS VÍCTIMAS","Tipo A"]
["UNIDAD ADMINISTRATIVA ESPECIAL SERVICIO PUBLICO DE EMPLEO","Tipo C"]
["UNIDAD DE INFORMACIÓN Y ANÁLISIS FINANCIERO","Tipo C"]
["UNIDAD DE PLANEACIÓN MINERO ENERGÉTICA (UPME)","Tipo C"]
["UNIDAD DE PLANIFICACIÓN DE TIERRAS RURALES, ADECUACIÓN DE TIERRAS Y USOS AGROPECUARIOS - UPRA","Tipo C"]
["UNIDAD DE PROYECCIÓN NORMATIVA Y ESTUDIOS DE REGULACIÓN FINANCIERA","Tipo C"]
["UNIDAD DE SERVICIOS PENITENCIARIOS Y CARCELARIOS","Tipo A"]
["UNIDAD NACIONAL DE PROTECCIÓN","Tipo A"]
["UNIDAD NACIONAL PARA LA GESTIÓN DEL RIESGO DE DESASTRES","Tipo C"]